{"text_format":"2","workbook":"xlsx","n_sheets":1,"sheets":["Sheet1"],"not_rendered":{"charts":0,"images":0,"macros":0,"external_links":0,"defined_names":0,"comments":1,"pivot_tables":0},"unopened":[],"bounds":{"document_bytes":16777216,"sheet_cells":100000,"run_cost":"one","rows_first":2000,"rows_last":500,"rows_between":2000,"halvings":0,"cell_chars":16384,"cell_head_chars":4096},"cells_cut":0,"cells_raw":0,"read":"whole","date_system":"1900"}

{"sheet":"Sheet1","index":0,"n_rows":33,"n_cols":18,"rows_kept":33,"cut":false,"hidden":false,"merged":[[5,7,5,9],[5,14,5,16],[7,14,11,16],[5,17,25,19],[27,2,28,15],[5,1,11,6],[7,7,11,9],[5,10,11,13]]}
[]
[]
[]
[]
[]
[null,"   上架当天能从店铺引入流量，进行收藏和加购最好（天按照24小时算）凌晨上架权重高，早上10点上架竞争大，但是流量也大，要看运气。第2天想尽办法必须要成交订单，不用担心转化率过高，有成交即可，有真实流量最好。第3天利用长尾包含关键字搜索到宝贝进入成交，可不考虑转化率。（通过烧车或者让老顾客搜索进来成交也可以）。第4天其他长尾包含关键字务必有成交,有淘口令成交最好,这样增加了无线端权重。第5天其他长尾包含关键字务必有成交，有部分无线渠道订单最好。\n需要成交的订单类型自己需要想尽一切办法完成！",{"$nulls":5},"递增确认收货数量",null,null,"第9天根据第7第8天的关键字展现量数据和无线端的关键字访客数据进行关键字数据维护，如果关键字数据转化率不高，烧车补上也可以。若流量仍然较低务必提高流量和无线端的加购率收藏率。第10-12天流量会从多个渠道进入，保持好转化率即可（若没有，自己要想办法促进这块的成交）另外第2周起无线端成交占比要达到6-7成",null,null,null,"递增收货数量",null,null,"产品2周内基本可以知道是否受淘宝推荐，基本操作后都可以看到明显的效果提升，若没有效果请检查下你宝贝是否有关键字被淘宝展现或者点击，然后这些关键字在淘宝指数里面的搜索数是否达到一定值，如果是关键字指数不够，那么就是权重起来了只是没人搜这些关键字，所以换关键字玩（重点是在关键字流量进来后检查下是否值得推广，值就去维护，不值得就先过)\n第3周开始真实订单占比要达到50%-第4周达到70% 搜索成交占比达到20-50%左右（否则产品不仅不能推广起来也比较容易慢慢失去流量）"]
[{"$nulls":7},2,3,3]
[{"$nulls":7},"678这3天\n确认收货数量即可\n不用管其他的顾客购买\n如果有成交第7天能爆发最好",{"$nulls":6},"678这3天\n确认收货数量即可\n不用管其他的顾客购买\n如果有成交第7天能爆发最好"]
[]
[]
[]
[]
[null,"补单数量",{"$f":"IF(SUM(C15:C26)=0,\"\",SUM(C15:C26))","v":""},2,2,{"$f":"IF(SUM(F15:F26)=0,\"\",SUM(F15:F26))","v":2},2,"","","",2,2,2,2,"","",""]
[null,"细分渠道","第1天","第2天","第3天","第4天","第5天","第6天","第7天","第8天","第9天","第10天","第11天","第12天","第13天","第14天","第15天"]
[null,"手机搜索",null,null,1,1,1,null,null,null,1,1,1]
[null,"电脑搜索",null,null,1,{"$nulls":5},1,null,null,1]
[null,"天猫搜索"]
[null,"店铺搜索"]
[null,"类目搜索"]
[null,"店铺收藏"]
[null,"宝贝收藏",null,1,{"$nulls":7},1,null,1]
[null,"已购宝贝"]
[null,"直通车"]
[null,"淘宝客"]
[null,"淘口令",null,null,null,1,1]
[null,"购物车",null,1,{"$nulls":8},1]
[]
[null,null,"如果你的用户是卡地域或者卡价格进来的那么对你的产品权重提升不利（7+和旺旺在线、新品不碍事）"]
[]
[null,"对应关键字"]
[null,"电脑搜索",{"$f":"IF(C16>0,\"准备做的关键字\",\"\")","v":""},{"$f":"IF(D16>0,\"准备做的关键字\",\"\")","v":""},"准备做的关键字","","","","","","准备做的关键字","","","准备做的关键字","","",""]
[null,"手机搜索",{"$f":"IF(C15>0,\"准备做的关键字\",\"\")","v":""},{"$f":"IF(D15>0,\"准备做的关键字\",\"\")","v":""},"准备做的关键字","准备做的关键字","准备做的关键字","","","","准备做的关键字","准备做的关键字","准备做的关键字","","","",""]
[null,"天猫搜索",{"$f":"IF(C17>0,\"准备做的关键字\",\"\")","v":""},{"$f":"IF(D17>0,\"准备做的关键字\",\"\")","v":""},"","","","","","","","","","","","",""]